Cogmind - Beta 15 @@@ ROGUE MODE // 2025.05.07 @ 20:52:26 Player: Spitfire Result: Destroyed by G-34 Mercenary with Small Laser Performance ------------- Evolutions (1) 500 Regions Visited (3) 600 Robots Destroyed (24) 120 Value Destroyed (721) 721 Prototype IDs (0) 0 Alien Tech Used (0) 0 Bonus (0) 0 TOTAL SCORE: 1941 Bonus ------- None Cogmind --------- Core Integrity 0/400 Matter 292/300 Energy 99/100 System Corruption 0% Temperature Cool (6) Movement Core (100) Ox1 Location -9/Storage Parts ------- > --- POWER (2) -------- (None) > --- PROPULSION (2) --- (None) > --- UTILITY (2) ------ Heat Sink > --- WEAPON (3) ------- Small Laser Beam Rifle Light Assault Rifle > --- INVENTORY (5) ---- Ion Engine Improved Ion Engine High-capacity Battery (250) Terrain Scanner Peak State ------------ > --- POWER ------------ Ion Engine Ion Engine > --- PROPULSION ------- Wheel Compact Wheel > --- UTILITY ---------- Heat Sink High-capacity Battery > --- WEAPON ----------- Small Laser Beam Cannon Light Assault Rifle > --- INVENTORY -------- Wheel Light Assault Rifle [Rating: 9] Favorites ----------- Power Ion Engine Engine Ion Engine Propulsion Wheel Wheel Wheel Hover Unit Hover Unit Utility Heat Sink Device Heat Sink Storage High-capacity Battery Weapon Light Assault Rifle Energy Gun Small Laser Energy Cannon Beam Cannon Ballistic Gun Light Assault Rifle Impact Weapon Maul Build | -11 -10 -9 -9 ------- Run | Yrd Mat Mat Sto Slots Evolved 2 | . . 2 . Power 1 | . . 1 . Propulsion . | . . . . Utility . | . . . . Weapon 1 | . . 1 . Parts Attached 26 | 6 6 6 8 Power 5 | 1 2 1 1 Engine 5 | 1 2 1 1 Core . | . . . . Reactor . | . . . . Propulsion 5 | 2 . 1 2 Treads . | . . . . Leg . | . . . . Wheel 3 | 2 . 1 . Hover 2 | . . . 2 Flight . | . . . . Utility 5 | . 2 1 2 Device 4 | . 1 1 2 Storage 1 | . 1 . . Processor . | . . . . Hackware . | . . . . Protection . | . . . . Artifact . | . . . . Weapon 11 | 3 2 3 3 Energy Gun 6 | 2 . 2 2 Energy Cannon 1 | . 1 . . Ballistic Gun 3 | 1 1 . 1 Ballistic Cannon . | . . . . Launcher . | . . . . Special Weapon . | . . . . Impact Weapon 1 | . . 1 . Slashing Weapon . | . . . . Piercing Weapon . | . . . . Special Melee Weapon . | . . . . Unidentified Prototypes . | . . . . Parts Lost 10 | . . 7 3 Power 2 | . . 2 . Propulsion 4 | . . 2 2 Utility 1 | . . 1 . Weapon 3 | . . 2 1 Highest Loss Streak 6 | . . 6 2 To Critical Strikes . | . . . . Average Backups 2 | 1 3 3 2 Power . | . 1 . . Propulsion . | . . . . Utility . | . . . 1 Weapon . | 1 . 2 . Tool/Special . | . . . . Unused Backups 4 | . 1 1 2 Power 2 | . 1 . 1 Propulsion 1 | . . 1 . Utility 1 | . . . 1 Weapon . | . . . . Tool/Special . | . . . . Average Slot Usage (%) 75 | . 86 83 63 Engine 10 | . 14 16 5 Wheel 13 | . 28 17 . Hover 4 | . . . 10 Device 9 | . 7 8 11 Storage 6 | . 7 11 5 Energy Gun 13 | . 13 8 16 Energy Cannon 2 | . . 9 . Ballistic Gun 13 | . 14 8 14 Peak Build Rating 9 | 5 7 9 9 Average Rating 6 | 3 6 8 6 On Entrance 3 | . 5 7 3 Naked Turns . | . . . . Heaviest Build 20 | 6 14 20 17 Greatest Support 26 | 26 26 26 12 Greatest Overweight (x) 5 | . . 3 5 Average Overweight (x) . | . . . 1 Largest Inventory Capacity 5 | 5 5 5 5 Average Capacity 5 | 5 5 5 5 Most Carried 5 | 5 5 5 5 Average Carried 2 | 2 3 3 2 Final Capacity 5 | 5 5 5 5 Final Carried 5 | 2 4 5 4 Class Distribution -------------------- 48% | Scavenger-Gunner 39% | Mutant 12% | Gunner Dominant Class ---------------- Mutant | -10/Materials Gunner | -9/Materials Scavenger-Gunner | -9/Storage Resources | -11 -10 -9 -9 ----------- Run | Yrd Mat Mat Sto Matter Collected 552 | 143 201 60 148 Remotely . | . . . . Salvage Created 1017 | . 387 212 418 Parts 60 | . 24 12 24 Haulers Intercepted . | . . . . Recyclers Shooed 2 | . 1 . 1 Parts Field Recycled . | . . . . Retrieved Matter . | . . . . Parts Self-Destructed . | . . . . Prevented . | . . . . Kills | -11 -10 -9 -9 ------- Run | Yrd Mat Mat Sto Combat Hostiles Destroyed 19 | . 8 4 7 Guns 15 | . 7 1 7 Cannons 2 | . . 2 . AOE 1 | . 1 . . Classes Destroyed 6 | . 5 1 . Builder 1 | . 1 . . Recycler 2 | . 1 . 1 Watcher 2 | . 1 . 1 Swarmer 3 | . 3 . . Grunt 8 | . 5 . 3 Sentry 8 | . . 4 4 Best Kill Streak 7 | . 7 2 2 Combat Bots Only 3 | . 3 2 2 Max Kills in Single Turn 1 | . 1 1 1 Gunslinging . | . . . . Exploded 1 | . 1 . . Melee . | . . . . Uniques/NPCs Destroyed . | . . . . Combat | -11 -10 -9 -9 -------- Run | Yrd Mat Mat Sto Hostile Shots Fired 136 | . 29 54 53 Missed 36 | . 8 11 17 Hits 100 | . 21 43 36 Projectile 100 | . 21 43 36 Critical Strikes 3 | . . 2 1 Damage Taken 1354 | . 243 638 473 Core 437 | . 29 226 182 Absorbed by Shields . | . . . . Regen/Repaired (Parts) 32 | . . . 32 Core Remaining (%) 94 | 100 88 . . Volleys Fired 63 | . 24 10 29 Largest 3 | . 2 3 3 Hottest 125 | . 60 125 116 Shots Fired 163 | . 48 30 85 Gun 153 | . 48 20 85 Cannon 10 | . . 10 . Launcher . | . . . . Special . | . . . . Kinetic 75 | . 24 10 41 Thermal 58 | . . 14 44 Explosive . | . . . . Electromagnetic 30 | . 24 6 . Robot Hit Streak 13 | . 7 7 13 Robot Miss Streak 3 | . 3 2 3 Penetration Max . | . . . . Secondary Targets 3 | . 1 . 2 Max Gunslinging Chain 1 | . 1 . 1 Shots Hit Robots 108 | . 28 22 58 Core Hits 48 | . 19 8 21 Critical Kills . | . . . . Critical Parts Destroyed 3 | . . 3 . Critical Strikes 6 | . 2 3 1 Burn 1 | . . . 1 Corrupt 2 | . 2 . . Smash 3 | . . 3 . Melee Attacks 7 | . . 7 . Impact 7 | . . 7 . Slashing . | . . . . Piercing . | . . . . Sneak Attacks . | . . . . Combat Hostiles . | . . . . Follow-up Attacks . | . . . . Damage Inflicted 1394 | . 421 387 586 Guns 1021 | . 324 111 586 Cannons 138 | . . 138 . Explosions 97 | . 97 . . Melee 138 | . . 138 . Ramming . | . . . . Kinetic 382 | . 96 38 248 Thermal 607 | . 97 172 338 Explosive . | . . . . Electromagnetic 267 | . 228 39 . Impact 138 | . . 138 . Slashing . | . . . . Piercing . | . . . . Highest Corruption . | . . . . Average Corruption . | . . . . Corruption Purged . | . . . . Corruption Blocked . | . . . . Overload Shots . | . . . . Overflow Damage 90 | . . 90 . Projectiles . | . . . . Explosions . | . . . . Melee 90 | . . 90 . Knockbacks . | . . . . Impact . | . . . . Kinetic . | . . . . Secondary . | . . . . Self-Inflicted Damage 36 | . 36 . . Shots 1 | . 1 . . Rammed . | . . . . Targets Rammed . | . . . . Kicked . | . . . . Crushed . | . . . . Highest Temperature 225 | . 40 225 138 Average Temperature 51 | . 13 92 39 Received Heat Transfer 510 | . 66 261 183 Siege Activations . | . . . . Martial Activations . | . . . . Shielding Activations . | . . . . Robots Disrupted . | . . . . Combat Hostiles . | . . . . Robots Corrupted 1 | . . 1 . Combat Hostiles 1 | . . 1 . Parts Fried 1 | . . 1 . Impact Corruptions 4 | . . 4 . Robots Melted . | . . . . Combat Hostiles . | . . . . Parts Melted 2 | . . . 2 Heat Transferred 1403 | . 150 371 882 Parts Sabotaged . | . . . . Parts Stolen . | . . . . Parts Stripped . | . . . . Power Chain Reactions 2 | . 2 . . Alert | -11 -10 -9 -9 ------- Run | Yrd Mat Mat Sto Maximum Alert Level . | . . . . Low Security (%) 100 | 100 100 100 100 Level 1 . | . . . . Level 2 . | . . . . Level 3 . | . . . . Level 4 . | . . . . Level 5 . | . . . . High Security . | . . . . Max Security . | . . . . Peak Influence 125 | . 125 93 101 Initial 48 | . . 48 17 Average 49 | . 48 58 52 Influence Increases 619 | . 233 135 251 Destroy 0b10 Robot/C 380 | . 160 80 140 Destroy 0b10 Robot/NC 25 | . 15 . 10 Destroy Leader 124 | . 32 40 52 Successful Hack 24 | . 6 . 18 Disable Machine 15 | . 15 . . Destroy Structure 6 | . 5 . 1 Partial Spotted 15 | . . 15 . Lose Combat Pursuer 30 | . . . 30 Influence Decreases 546 | . 118 207 221 Entered New Map 93 | . . 67 26 Time Decay 353 | . 118 70 165 Lost Part 100 | . . 70 30 Squads Dispatched 3 | . 2 . 1 Investigation 1 | . 1 . . Extermination . | . . . . Reinforcement 2 | . 1 . 1 Assault . | . . . . Garrison . | . . . . Intercept . | . . . . Searches Triggered . | . . . . Construction Impeded . | . . . . Haulers Reinforced . | . . . . Active Scanning Responses . | . . . . Cargo Convoy Interrupts . | . . . . Stealth | -11 -10 -9 -9 --------- Run | Yrd Mat Mat Sto Distress Signals 1 | . 1 . . Communications Jammed . | . . . . Distress Signals . | . . . . Times Spotted 28 | . 10 6 12 Peak Tracking Total 5 | . 3 3 5 Tactical Retreats 2 | . . . 2 Traps | -11 -10 -9 -9 ------- Run | Yrd Mat Mat Sto Traps Triggered 1 | . 1 . . Indirectly . | . . . . Trap Hack Attempts . | . . . . Triggered . | . . . . Disarmed . | . . . . Reprogrammed . | . . . . Reused . | . . . . Traps Extracted . | . . . . Installed . | . . . . Triggered . | . . . . Machines | -11 -10 -9 -9 ---------- Run | Yrd Mat Mat Sto Machines Disabled 1 | . 1 . . Max in Single Turn 1 | . 1 . . Machines Repaired . | . . . . Machines Dismantled . | . . . . Machines Sabotaged . | . . . . Overloaded Fab Kills . | . . . . Hacking | -11 -10 -9 -9 --------- Run | Yrd Mat Mat Sto Machines Accessed 6 | . 2 . 4 Terminals 3 | . 1 . 2 Fabricators . | . . . . Repair Stations 1 | . . . 1 Recycling Units 2 | . 1 . 1 Scanalyzers . | . . . . Garrison Access . | . . . . Total Hacks 12 | . 3 . 9 Successful 8 | . 3 . 5 Failed 4 | . . . 4 Catastrophic 1 | . . . 1 Database Lockouts . | . . . . Manual 1 | . . . 1 Terminals 6 | . 2 . 4 Fabricators . | . . . . Repair Stations 3 | . . . 3 Recycling Units 3 | . 1 . 2 Scanalyzers . | . . . . Garrison Access . | . . . . Terminal Hacks 4 | . 2 . 2 Record 2 | . 1 . 1 Robot Analysis 1 | . 1 . . Investigation Status 1 | . . . 1 Fabricator Hacks . | . . . . Repair Station Hacks 2 | . . . 2 Scan Component 1 | . . . 1 Repair 1 | . . . 1 Recycling Unit Hacks 2 | . 1 . 1 Recycle Component 2 | . 1 . 1 Scanalyzer . | . . . . Garrison Access Hacks . | . . . . Unauthorized Hacks . | . . . . Terminals . | . . . . Fabricators . | . . . . Repair Stations . | . . . . Recycling Units . | . . . . Scanalyzers . | . . . . Garrison Access . | . . . . Data Cores Recovered . | . . . . Used . | . . . . Hacking Detections 3 | . . . 3 Full Trace Events . | . . . . Feedback Events . | . . . . Feedback Blocked . | . . . . Robot Schematics Acquired . | . . . . Robots Built . | . . . . Authchips . | . . . . Time . | . . . . Total Robot Build Rating . | . . . . Part Schematics Acquired . | . . . . Parts Built . | . . . . Authchips . | . . . . Time . | . . . . Total Part Build Rating . | . . . . Parts Repaired 1 | . . . 1 Time 26 | . . . 26 Parts Recycled 2 | . 1 . 1 Recycled Matter . | . . . . Retrieved Matter . | . . . . Retrieved Components . | . . . . Parts Scanalyzed . | . . . . Part Schematics Acquired . | . . . . Parts Damaged . | . . . . Bothacking | -11 -10 -9 -9 ------------ Run | Yrd Mat Mat Sto Used RIF Installer . | . . . . Robots Hacked . | . . . . Non-combat . | . . . . Combat . | . . . . Robot Hacks Applied . | . . . . Relay Couplers Released . | . . . . Fabnet Peak Effective % . | . . . . Robots Rewired . | . . . . Allies Hacked . | . . . . Hacks Repelled . | . . . . Allies | -11 -10 -9 -9 -------- Run | Yrd Mat Mat Sto Total Allies . | . . . . Largest Group . | . . . . Highest-Rated Group . | . . . . Highest-Rated Ally . | . . . . Total Orders . | . . . . Ally Attacks . | . . . . Total Damage . | . . . . Kills . | . . . . Allies Corrupted . | . . . . Allies Melted . | . . . . Intel | -11 -10 -9 -9 ------- Run | Yrd Mat Mat Sto Active Infowar (turns) 6 | . . . 6 Terrain 6 | . . . 6 Robot Analysis Total 1 | . 1 . . Derelict Logs Recovered . | . . . . Drone Launches . | . . . . Drone Recoveries . | . . . . Exploration | -11 -10 -9 -9 ------------- Run | Yrd Mat Mat Sto Turns Passed 908 | 52 297 158 401 Spaces Moved 579 | 52 228 94 205 Core 118 | 18 . 6 94 Treads . | . . . . Legs . | . . . . Wheels 350 | 34 228 88 . Hover 111 | . . . 111 Flight . | . . . . Fastest Speed 50 | 50 90 80 56 Average Speed 101 | 76 90 90 125 Slowest Speed 300 | 90 90 200 300 Overloaded Moves . | . . . . Propulsion Burnouts . | . . . . Robots Hopped . | . . . . Potential Cave-ins . | . . . . Cave-ins Triggered . | . . . . Exploration Rate (%) 23 | 4 47 13 28 Regions Visited 3 Branch Regions 1 Pre-discovered Areas . | . . . . Known Exits Taken . | . . . . Unknown Exits Taken 3 | 1 1 1 . Scrap Searched . | . . . . Spaces Dug . | . . . . Terrain Destroyed 3 | . 3 . . Melee . | . . . . Projectile . | . . . . AOE 3 | . 3 . . Terrain Rammed . | . . . . Walls Destroyed . | . . . . Machines Disabled . | . . . . Actions | -11 -10 -9 -9 --------- Run | Yrd Mat Mat Sto Total 765 | 62 277 132 294 Wait 44 | . 5 7 32 Move 576 | 51 227 93 205 Hop . | . . . . Pick Up 29 | 5 10 6 8 Fast Attach 2 | 2 . . . Attach 18 | 3 3 2 10 Detach 5 | . . . 5 Swap 11 | 1 3 4 3 Drop 10 | . 5 3 2 Fire 63 | . 24 10 29 Melee 7 | . . 7 . Ram . | . . . . Kick . | . . . . Crush . | . . . . Escape Stasis . | . . . . Rewire . | . . . . Trap . | . . . . Miscellaneous . | . . . . Route ------- -11/Scrapyard -10/Materials -9/Materials -9/Storage History --------- Turn | Location | Event 25 | -11/Scrapyard | Discovered new exit (range 16) 53 | -11/Scrapyard | Entered Materials 54 | -10/Materials | Met a group of wandering Federalists 137 | -10/Materials | Discovered new exit (range 16) 301 | -10/Materials | Build established: Mutant 350 | -10/Materials | Entered another Materials area 350 | -9/Materials | Evolved 2 slots: Power x1, Weapon x1 375 | -9/Materials | Discovered new exit (range 15) 504 | -9/Materials | Core integrity fell below 50% 508 | -9/Materials | Entered Storage 525 | -9/Storage | Lost 6 parts (1p2n1u2w) 663 | -9/Storage | Core integrity fell below 20% 774 | -9/Storage | Repaired Hcp. Battery 796 | -9/Storage | Build established: Scavenger-Gunner 909 | -9/Storage | Destroyed by G-34 Mercenary with Small Laser Last Messages --------------- Mercenary. 00825_ K-01 Serf cleans the Repair Station. 00828_ K-01 Serf collects debris. 00836_ K-01 Serf cleans the Repair Station. 00836_ G-34 Mercenary suffers critical hit (Burn). 00836_ G-34 Mercenary destroyed. 00839_ K-01 Serf collects debris. 00843_ Acquired 19 matter. 00845_ Acquired Sml. Laser. 00847_ Acquired Ion Engine. 00850_ K-01 Serf cleans the Compression Vault. 00853_ Dropped Sml. Laser. 00883_ Hover Unit destroyed. 00890_ Aluminum Leg melted. 00890_ Heat Sink melted. 00890_ G-34 Mercenary destroyed. 00890_ Switching to secondary target: G-34 Mercenary. 00906_ Hover Unit destroyed. Map ----- +----------------------------------------------------+ | ?????????????????????????????????????????????????? | | ?????????????????????????????????????????????????? | | ?????????????????????????????????????????????????? | | ?????????????????????????????????????????????????? | | ?????????????????????????????????????????????????? | | ?????????????????????????????????????????????????? | | ?????????????????????????????????????????????????? | | ?????????????????????????????????????????????????? | | ?????????????????????????????????????????????????? | | ?????????????????????????????????????????????????? | | ?????????????????????????????????????????????????? | | ?????????????????????????????????????????????????? | | ?????????????????????????????????????????????????? | | ?????????????????????????????????????????????????? | | ?????????????????????????????????????????????????? | | ?????????????????????????????????????????????????? | | ?????????????????????????????????????????????????? | | ??????????????????????? ?????????????????????????? | | ??????????????????????? ?????????????????????????? | | ??????????????????????? ?????????????????????????? | | ??????????????????????? ?????????????????????????? | | ??????????????????????? ?????????????????????????? | | ??????????????????????? ?????????????????????????? | | ??????????????????????? ##+##????????????????????? | | ??????????????????????# # ?????????????????????? | | ??????????????????????# /@"??????????????????????? | | ??????????????????????# # "??????????????????????? | | ??????????????????????# # ""?????????????????????? | | ??????????????????????# # "?????????????????????? | | ??????????????????????# # Y"?????????????????????? | | ???????????????????#### #g """"" #??????????????? | | ???????????????????# *+% #??????????????? | | ???????????????????# ########/#?????????##+???? | | ? ?????????????????# #??????????????? ???? | | " #????????????????# #??????????????? ???? | | " #????????????????##### #?????#????????? ???? | | " #????????????????????## ##???? #????????? ???? | | +?????????????????????# #???? #?????????# ???? | | " #??????????????###???## ##?? #?????????# #??? | | " #??????????????# ### ## #?????????# #??? | | " #????????# #?????????# #??? | | #??????????????# % ### #######?????????# +??? | | #####????????????##%#?###+####??????????#### #??? | | #?????????????# ### #??????????? # #??? | | #???????#####?# #"" """ #???????????? #??? | | "" #???????#!!!#?# #"T """ #?????????????# #??# | | "" #???????#! !#?# #"" """ #?????????????# ###T | | "" #???????#" "### ### #?????????????# | | #???????# T## #?# [ #?????????????# | | #+#############+### #####+##+#################+### | +----------------------------------------------------+ Best States ------------- Heat Dissipation 38 Energy Generation 15 Energy Capacity 650 Matter Stores 300 Matter Capacity 300 Sight Range 16 Terrain Scan Density 10 Evasion (%) 53 Item Schematics ----------------- None Robot Schematics ------------------ None Fabricated ------------ Nothing Repaired ---------- Hcp. Battery | 28% | -9/Storage Alien Tech Used ----------------- None Achievements -------------- None Challenges ------------ None Game ------ Seed ArcHeatRefractor Manual? 0 Play Time 00:17:05 Cumulative 4.2 hours Start 2025.05.07 @ 20:32:43 End 2025.05.07 @ 20:52:26 Sessions 1 Manual Loads 0 Difficulty Rogue Special Mode None Game No. 4 Rogue 4 Adventurer 0 Explorer 0 Win Type - Total 0 Types 0/0/0/0/0/0/0/0/0/0 Lore% 2 Gallery% 8 Achievement% 12 Wizard Run 0 Options --------- Layout 1 ASCII 0 Keyboard 0 Movement Mouse Keybinds 0 Fullscreen 2 Font 24/Terminus Map View 50x35 Zoom Use 0% Tactical HUD 1 Map Filters NONE Filters NONE Steam 1 RUN: f38716c0-336f-4733-bf89-c8cb92f71fcf